fUST/lending_fUST_20250611
["ID","MTS","AMOUNT","RATE_DAILY","PERIOD"]
[365289565,1749581446989,-243.70160215,0.00023616,4]
[365289566,1749581447001,-509.45128232,0.00023659,9]
[365289567,1749581447010,-509.45128232,0.00023762,9]
[365289568,1749581447019,-228.01428029,0.00023763,2]
[365289569,1749581447029,-151.0,0.00023808,7]
[365289570,1749581447039,-669.93,0.00023823,4]
[365289571,1749581447049,-1004.61,0.00023823,4]
[365289572,1749581447061,-949.74,0.00023823,4]
[365289573,1749581447071,-868.44,0.00023823,4]
[365289574,1749581447081,-460.0,0.00023823,4]
[365289575,1749581447091,-646.54,0.00023823,4]
[365289576,1749581447101,-460.0,0.00023823,4]
[365289577,1749581447110,-825.58,0.00023823,4]
[365289578,1749581447120,-437.72,0.00023823,4]
[365289579,1749581447131,-495.53,0.00023824,4]
[365289580,1749581447141,-460.0,0.00023824,4]
[365289581,1749581447151,-935.55,0.00023824,4]
[365289582,1749581447161,-460.74,0.00023824,4]
[365289583,1749581447171,-460.0,0.00023824,4]
[365289584,1749581447182,-460.0,0.00023824,4]
[365289585,1749581447192,-1452.63,0.00023825,4]
[365289586,1749581447202,-2226.35,0.00023825,4]
[365289587,1749581447213,-1116.57,0.00023825,4]
[365289588,1749581447223,-498.56,0.00023825,4]
[365289589,1749581447234,-460.0,0.00023825,4]
[365289590,1749581447244,-417.8986454,0.0002386,2]
[365289591,1749581447254,-509.45128232,0.00023866,10]
[365289592,1749581447263,-1470.04,0.000239,2]
[365289593,1749581447273,-509.45128232,0.00023969,10]
[365289594,1749581447282,-229.6792923,0.00024,7]
[365289595,1749581447292,-151.0,0.00024019,7]
[365289596,1749581447302,-5000.0,0.00024032,2]
[365289597,1749581447312,-509.45128232,0.00024072,10]
[365289598,1749581447322,-364.9974737,0.00024076,2]
[365289599,1749581447332,-669.93,0.00024097,4]
[365289600,1749581447342,-1004.61,0.00024097,4]
[365289601,1749581447351,-949.74,0.00024097,4]
[365289602,1749581447362,-868.44,0.00024097,4]
[365289603,1749581447372,-460.0,0.00024097,4]
[365289604,1749581447382,-646.54,0.00024097,4]
[365289605,1749581447392,-460.0,0.00024097,4]
[365289606,1749581447402,-825.58,0.00024097,4]
[365289607,1749581447412,-495.53,0.00024098,4]
[365289608,1749581447422,-460.0,0.00024098,4]
[365289609,1749581447431,-935.55,0.00024098,4]
[365289610,1749581447441,-460.74,0.00024098,4]
[365289611,1749581447450,-460.0,0.00024098,4]
[365289612,1749581447460,-460.0,0.00024098,4]
[365289613,1749581447469,-1452.63,0.00024099,4]
[365289614,1749581447479,-2226.35,0.00024099,4]
[365289615,1749581447490,-1116.57,0.00024099,4]
[365289616,1749581447510,-498.56,0.00024099,4]
[365289617,1749581447520,-460.0,0.00024099,4]
[365289618,1749581447530,-168.0,0.00024128,2]
[365289619,1749581447541,-160.51481704,0.00024143,2]
[365289620,1749581447551,-509.45128232,0.00024176,10]
[365289621,1749581447562,-151.0,0.00024231,7]
[365289622,1749581447572,-228.01428029,0.00024264,2]
[365289623,1749581447582,-509.45128232,0.00024279,10]
[365289624,1749581447592,-1593.45162398,0.00024354,3]
[365289625,1749581447602,-963.711261,0.00024367,3]
[365289626,1749581447611,-82939.72126813,0.00024368,7]
[365289627,1749581447621,-8254.94580409,0.00024368,7]
[365289628,1749581447632,-160.0,0.00024368,7]
[365289629,1749581447643,-424.12530924,0.00024368,7]
[365289630,1749581447653,-669.93,0.00024371,4]
[365289631,1749581447663,-1004.61,0.00024371,4]
[365289632,1749581447673,-949.74,0.00024371,4]
[365289633,1749581447683,-868.44,0.00024371,4]
[365289634,1749581447693,-562.38935768,0.00024371,4]
[365289635,1749581447703,-646.54,0.00024371,4]
[365289636,1749581447712,-460.0,0.00024371,4]
[365289637,1749581447722,-825.58,0.00024371,4]
[365289638,1749581447734,-495.53,0.00024372,4]
[365289639,1749581447744,-460.0,0.00024372,4]
[365289640,1749581447754,-935.55,0.00024372,4]
[365289641,1749581447763,-460.74,0.00024372,4]
[365289642,1749581447773,-460.0,0.00024372,4]
[365289643,1749581447783,-460.0,0.00024372,4]
[365289644,1749581447793,-1452.63,0.00024373,4]
[365289645,1749581447802,-2226.35,0.00024373,4]
[365289646,1749581447812,-1116.57,0.00024373,4]
[365289647,1749581447822,-498.56,0.00024373,4]
[365289648,1749581447831,-460.0,0.00024373,4]
[365289649,1749581447841,-509.45128232,0.00024383,11]
[365289650,1749581447851,-542.24,0.000244,7]
[365289651,1749581447861,-21613.18867126,0.000244,7]
[365289652,1749581448114,-460.0,0.00023276,4]
[365289653,1749581448123,-460.0,0.0002355,4]
[365289654,1749581448133,-460.0,0.00023824,4]
[365289655,1749581448143,-460.0,0.00024098,4]
[365289656,1749581448153,-460.0,0.00024372,4]
[365289657,1749581448162,-11384.69168741,0.000244,7]
[365289658,1749581448174,-509.6161884,0.000244,7]
[365289663,1749581692941,346.5,0.00024862,60]
[365289664,1749581702884,207.852609,0.00013699,2]
[365289802,1749582632656,-201.1011484,0.00020135,2]
[365289804,1749582632666,-207.852609,0.00020187,2]
[365289806,1749582632675,-903.951738,0.00020262,2]
[365289808,1749582632685,-201.5500455,0.00020287,2]
[365289810,1749582632695,-369.830698,0.00020301,2]
[365289812,1749582632705,-500.0,0.00021029,2]
[365289814,1749582632715,-224.05903054,0.00021299,2]
[365289825,1749582632814,-75.94096946,0.00021299,2]
[365289827,1749582632824,-1200.0,0.00021299,2]
[365289829,1749582632834,-12546.1719631,0.000213,4]
[365289831,1749582632843,-796.79,0.00021349,2]
[365289833,1749582632852,-430.0,0.00021354,4]
[365289835,1749582632862,-460.0,0.00021354,4]
[365289837,1749582632871,-460.0,0.00021354,4]
[365289839,1749582632880,-460.0,0.00021354,4]
[365289841,1749582632890,-430.0,0.00021354,4]
[365289843,1749582632899,-430.0,0.00021354,4]
[365289845,1749582632910,-1071.55,0.00021354,4]
[365289847,1749582632920,-440.0,0.00021354,4]
[365289849,1749582632930,-430.0,0.00021354,4]
[365289850,1749582632939,-694.83,0.00021354,4]
[365289853,1749582632949,-605.44,0.00021354,4]
[365289856,1749582632958,-460.0,0.00021354,4]
[365289859,1749582632968,-256.99,0.00021354,4]
[365289862,1749582632977,-460.0,0.00021354,4]
[365289865,1749582632987,-430.0,0.00021354,4]
[365289869,1749582632996,-440.0,0.00021354,4]
[365289873,1749582633007,-460.0,0.00021354,4]
[365289877,1749582633017,-622.43,0.00021354,4]
[365289881,1749582633026,-766.84,0.00021354,4]
[365289885,1749582633035,-564.23,0.00021354,4]
[365289889,1749582633045,-440.0,0.00021354,4]
[365289893,1749582633055,-440.0,0.00021354,4]
[365289897,1749582633064,-337.82031204,0.00021354,4]
[365289901,1749582633074,-460.0,0.00021354,4]
[365289905,1749582633085,-460.0,0.00021354,4]
[365289909,1749582633095,-460.0,0.00021354,4]
[365289913,1749582633106,-400.0,0.00021354,4]
[365289917,1749582633115,-430.0,0.00021354,4]
[365289921,1749582633125,-460.0,0.00021354,4]
[365289923,1749582633134,-460.0,0.00021354,4]
[365289925,1749582633144,-460.0,0.00021354,4]
[365289928,1749582633154,-430.0,0.00021354,4]
[365289931,1749582633163,-430.0,0.00021354,4]
[365289934,1749582633173,-460.0,0.00021354,4]
[365289937,1749582633183,-430.0,0.00021355,4]
[365289940,1749582633193,-438.86606368,0.00021355,4]
[365289943,1749582633203,-440.0,0.00021355,4]
[365289947,1749582633214,-460.0,0.00021355,4]
[365289949,1749582633224,-440.0,0.00021355,4]
[365289952,1749582633234,-460.0,0.00021355,4]
[365289955,1749582633243,-460.0,0.00021355,4]
[365289958,1749582633254,-440.0,0.00021355,4]
[365289961,1749582633272,-440.0,0.00021355,4]
[365289963,1749582633283,-500.0,0.00021355,4]
[365289966,1749582633293,-500.0,0.00021355,4]
[365289969,1749582633304,-500.0,0.00021355,4]
[365289972,1749582633314,-440.0,0.00021355,4]
[365289975,1749582633323,-430.0,0.00021355,4]
[365289977,1749582633333,-430.0,0.00021355,4]
[365289978,1749582633342,-430.0,0.00021355,4]
[365289979,1749582633352,-460.0,0.00021355,4]
[365289980,1749582633362,-440.0,0.00021355,4]
[365289981,1749582633372,-460.0,0.00021355,4]
[365289982,1749582633382,-460.0,0.00021355,4]
[365289983,1749582633391,-460.0,0.00021355,4]
[365289984,1749582633401,-430.0,0.00021355,4]
[365289985,1749582633410,-440.0,0.00021355,4]
[365289986,1749582633422,-440.0,0.00021355,4]
[365289987,1749582633432,-440.0,0.00021355,4]
[365289988,1749582633442,-440.0,0.00021355,4]
[365289989,1749582633451,-440.0,0.00021355,4]
[365289990,1749582633462,-440.0,0.00021355,4]
[365289991,1749582633472,-440.0,0.00021355,4]
[365289992,1749582633482,-730.35,0.00021355,4]
[365289993,1749582633491,-460.0,0.00021355,4]
[365289994,1749582633502,-460.0,0.00021355,4]
[365289995,1749582633514,-460.0,0.00021355,4]
[365289996,1749582633523,-460.0,0.00021355,4]
[365289997,1749582633533,-430.0,0.00021355,4]
[365289998,1749582633543,-460.0,0.00021355,4]
[365289999,1749582633552,-460.0,0.00021355,4]
[365290000,1749582633561,-440.0,0.00021355,4]
[365290001,1749582633572,-430.0,0.00021355,4]
[365290002,1749582633582,-460.0,0.00021355,4]
[365290003,1749582633591,-460.0,0.00021355,4]
[365290004,1749582633601,-440.0,0.00021355,4]
[365290005,1749582633610,-402.7155122,0.00021355,4]
[365290006,1749582633620,-460.0,0.00021355,4]
[365290007,1749582633630,-460.0,0.00021355,4]
[365290008,1749582633640,-460.0,0.00021355,4]
[365290009,1749582633650,-460.0,0.00021355,4]
[365290010,1749582633659,-460.0,0.00021355,4]
[365290011,1749582633669,-402.46978806,0.00021355,4]
[365290012,1749582633679,-460.0,0.00021355,4]
[365290013,1749582633689,-460.0,0.00021355,4]
[365290014,1749582633699,-460.0,0.00021355,4]
[365290015,1749582633710,-440.0,0.00021355,4]
[365290016,1749582633719,-460.0,0.00021356,4]
[365290017,1749582633730,-406.37695007,0.00021356,4]
[365290018,1749582633740,-320.59813726,0.00021356,4]
[365290019,1749582633750,-431.25416698,0.00021356,4]
[365290020,1749582633761,-450.0,0.00021356,4]
[365290021,1749582633771,-430.0,0.00021356,4]
[365290022,1749582633781,-440.0,0.00021356,4]
[365290023,1749582633790,-170.51195781,0.00021356,4]
[365290024,1749582633800,-440.0,0.00021356,4]
[365290025,1749582633810,-449.30003978,0.00021356,4]
[365290026,1749582633820,-440.0,0.00021356,4]
[365290027,1749582633830,-440.09053989,0.00021356,4]
[365290028,1749582633840,-440.0,0.00021356,4]
[365290029,1749582633850,-390.0,0.00021356,4]
[365290030,1749582633860,-440.0,0.00021356,4]
[365290031,1749582633871,-443.64799591,0.00021356,4]
[365290032,1749582633882,-440.0,0.00021356,4]
[365290033,1749582633893,-440.0,0.00021356,4]
[365290034,1749582633903,-440.0,0.00021356,4]
[365290035,1749582633914,-437.78767133,0.00021356,4]
[365290036,1749582633924,-440.0,0.00021356,4]
[365290037,1749582633936,-440.0,0.00021356,4]
[365290038,1749582633946,-440.0,0.00021356,4]
[365290039,1749582633956,-556.00428834,0.00021356,4]
[365290040,1749582633966,-514.22176181,0.00021356,4]
[365290041,1749582633976,-503.3260284,0.00021356,4]
[365290042,1749582633986,-441.02540797,0.00021356,4]
[365290043,1749582633996,-440.0,0.00021356,4]
[365290044,1749582634006,-440.0,0.00021356,4]
[365290045,1749582634016,-517.37955047,0.00021356,4]
[365290046,1749582634026,-445.37745601,0.00021356,4]
[365290047,1749582634036,-440.0,0.00021356,4]
[365290048,1749582634045,-440.0,0.00021356,4]
[365290049,1749582634055,-440.0,0.00021356,4]
[365290050,1749582634064,-440.0,0.00021356,4]
[365290051,1749582634074,-440.0,0.00021356,4]
[365290052,1749582634083,-440.0,0.00021356,4]
[365290053,1749582634093,-459.80013698,0.00021356,4]
[365290054,1749582634102,-460.0,0.00021356,4]
[365290055,1749582634112,-507.47,0.00021356,4]
[365290056,1749582634122,-450.0,0.00021356,4]
[365290057,1749582634131,-41.61953792,0.00021356,4]
[365290058,1749582634219,-408.63607525,0.00021356,4]
[365290059,1749582634229,-440.0,0.00021356,4]
[365290060,1749582634239,-440.0,0.00021356,4]
[365290061,1749582634248,-440.0,0.00021356,4]
[365290062,1749582634259,-426.53720449,0.00021356,4]
[365290063,1749582634270,-441.94390668,0.00021356,4]
[365290064,1749582634279,-509.46256607,0.00021356,4]
[365290065,1749582634289,-505.24586559,0.00021356,4]
[365290066,1749582634299,-440.0,0.00021356,4]
[365290067,1749582634308,-440.0,0.00021356,4]
[365290068,1749582634318,-460.0,0.00021356,4]
[365290069,1749582634327,-440.0,0.00021356,4]
[365290070,1749582634337,-440.0,0.00021356,4]
[365290071,1749582634348,-440.0,0.00021356,4]
[365290072,1749582634358,-500.0,0.00021356,4]
[365290073,1749582634367,-500.0,0.00021356,4]
[365290074,1749582634376,-500.0,0.00021356,4]
[365290075,1749582634385,-440.0,0.00021356,4]
[365290076,1749582634503,-440.0,0.00021356,4]
[365290077,1749582634514,-460.0,0.00021356,4]
[365290078,1749582634524,-440.0,0.00021356,4]
[365290079,1749582634534,-440.0,0.00021356,4]
[365290080,1749582634543,-440.0,0.00021356,4]
[365290081,1749582634552,-353.5421688,0.00021356,4]
[365290082,1749582634562,-460.0,0.00021356,4]
[365290083,1749582634571,-440.0,0.00021356,4]
[365290084,1749582634580,-320.0,0.00021356,4]
[365290085,1749582634590,-220.83138837,0.00021356,4]
[365290086,1749582634599,-440.0,0.00021356,4]
[365290087,1749582634608,-440.0,0.00021356,4]
[365290088,1749582634618,-509.96422887,0.00021356,4]
[365290089,1749582634627,-505.73193461,0.00021356,4]
[365290090,1749582634638,-440.0,0.00021356,4]
[365290091,1749582634648,-452.79946169,0.00021356,4]
[365290092,1749582634658,-400.0,0.00021356,4]
[365290093,1749582634668,-443.54183881,0.00021356,4]
[365290094,1749582634678,-440.0,0.00021356,4]
[365290095,1749582634687,-443.46448818,0.00021356,4]
[365290096,1749582634697,-430.0,0.00021356,4]
[365290097,1749582634707,-400.0,0.00021356,4]
[365290098,1749582634716,-440.0,0.00021356,4]
[365290099,1749582634727,-440.0,0.00021356,4]
[365290100,1749582634736,-440.0,0.00021356,4]
[365290101,1749582634745,-935.39,0.00021356,4]
[365290102,1749582634755,-255.91969351,0.00021356,4]
[365290103,1749582634765,-224.73162541,0.00021356,4]
[365290104,1749582634774,-438.5400187,0.00021356,4]
[365290105,1749582634784,-440.0,0.00021356,4]
[365290106,1749582634794,-402.52947357,0.00021356,4]
[365290107,1749582634803,-440.0,0.00021356,4]
[365290108,1749582634812,-440.0,0.00021356,4]
[365290109,1749582634823,-440.0,0.00021356,4]
[365290110,1749582634832,-360.0,0.00021356,4]
[365290111,1749582634842,-440.0,0.00021356,4]
[365290112,1749582634851,-440.0,0.00021356,4]
[365290113,1749582634861,-595.70686967,0.00021356,4]
[365290114,1749582634870,-440.0,0.00021356,4]
[365290115,1749582634880,-440.0,0.00021356,4]
[365290116,1749582634890,-430.0,0.00021356,4]
[365290117,1749582634899,-440.0,0.00021356,4]
[365290118,1749582634909,-440.0,0.00021356,4]
[365290119,1749582634918,-440.0,0.00021356,4]
[365290120,1749582634927,-400.0,0.00021356,4]
[365290121,1749582634936,-440.0,0.00021356,4]
[365290122,1749582634946,-510.0,0.00021356,4]
[365290123,1749582634955,-440.0,0.00021356,4]
[365290124,1749582634964,-430.0,0.00021356,4]
[365290125,1749582634973,-440.0,0.00021356,4]
[365290126,1749582634982,-233.04985623,0.00021356,4]
[365290127,1749582634991,-440.0,0.00021356,4]
[365290128,1749582635001,-400.0,0.00021356,4]
[365290129,1749582635011,-430.0,0.00021356,4]
[365290130,1749582635020,-440.0,0.00021356,4]
[365290131,1749582635030,-507.88493114,0.00021356,4]
[365290132,1749582635039,-430.0,0.00021356,4]
[365290133,1749582635048,-440.0,0.00021356,4]
[365290134,1749582635058,-430.0,0.00021356,4]
[365290135,1749582635067,-430.0,0.00021356,4]
[365290136,1749582635077,-351.89463732,0.00021356,4]
[365290137,1749582635086,-402.56902387,0.00021356,4]
[365290138,1749582635096,-440.0,0.00021356,4]
[365290139,1749582635105,-460.0,0.00021356,4]
[365290140,1749582635114,-440.0,0.00021356,4]
[365290141,1749582635123,-440.0,0.00021356,4]
[365290142,1749582635132,-460.0,0.00021356,4]
[365290143,1749582635142,-401.94791511,0.00021356,4]
[365290144,1749582635151,-430.0,0.00021356,4]
[365290145,1749582635161,-440.0,0.00021356,4]
[365290146,1749582635170,-460.0,0.00021356,4]
[365290147,1749582635180,-400.0,0.00021356,4]
[365290148,1749582635189,-528.04361022,0.00021356,4]
[365290149,1749582635198,-400.0,0.00021356,4]
[365290150,1749582635207,-440.0,0.00021356,4]
[365290151,1749582635217,-440.0,0.00021356,4]
[365290152,1749582635225,-440.0,0.00021356,4]
[365290153,1749582635234,-440.0,0.00021356,4]
[365290154,1749582635243,-440.0,0.00021356,4]
[365290155,1749582635252,-430.0,0.00021356,4]
[365290156,1749582635263,-414.71003041,0.00021356,4]
[365290157,1749582635272,-440.0,0.00021356,4]
[365290158,1749582635280,-440.0,0.00021356,4]
[365290159,1749582635290,-440.0,0.00021356,4]
[365290160,1749582635315,-440.0,0.00021356,4]
[365290161,1749582635324,-440.0,0.00021356,4]
[365290162,1749582635333,-440.0,0.00021356,4]
[365290163,1749582635342,-440.0,0.00021356,4]
[365290164,1749582635351,-423.22003313,0.00021356,4]
[365290165,1749582635360,-380.96987757,0.00021356,4]
[365290166,1749582635369,-507.63682359,0.00021356,4]
[365290167,1749582635378,-401.61404697,0.00021356,4]
[365290168,1749582635387,-232.33200696,0.00021356,4]
[365290169,1749582635397,-440.0,0.00021356,4]
[365290170,1749582635406,-440.0,0.00021356,4]
[365290171,1749582635417,-440.0,0.00021356,4]
[365290172,1749582635430,-400.44101049,0.00021356,4]
[365290173,1749582635440,-1594.92,0.00021356,4]
[365290174,1749582635449,-956.23,0.00021356,4]
[365290175,1749582635458,-440.0,0.00021356,4]
[365290176,1749582635469,-440.0,0.00021356,4]
[365290177,1749582635478,-440.0,0.00021356,4]
[365290178,1749582635487,-430.0,0.00021356,4]
[365290179,1749582635497,-440.0,0.00021356,4]
[365290180,1749582635507,-460.0,0.00021356,4]
[365290181,1749582635517,-441.0920171,0.00021356,4]
[365290182,1749582635526,-460.0,0.00021356,4]
[365290183,1749582635536,-460.0,0.00021356,4]
[365290184,1749582635546,-500.0,0.00021356,4]
[365290185,1749582635555,-440.0,0.00021356,4]
[365290186,1749582635564,-575.13639792,0.00021356,4]
[365290187,1749582635573,-460.0,0.00021356,4]
[365290188,1749582635582,-440.0,0.00021356,4]
[365290189,1749582635592,-500.0,0.00021356,4]
[365290190,1749582635601,-500.0,0.00021356,4]
[365290191,1749582635610,-460.0,0.00021356,4]
[365290192,1749582635620,-406.69462422,0.00021356,4]
[365290193,1749582635629,-440.0,0.00021356,4]
[365290194,1749582635639,-440.0,0.00021356,4]
[365290195,1749582635648,-400.0,0.00021356,4]
[365290196,1749582635658,-460.0,0.00021356,4]
[365290197,1749582635667,-460.0,0.00021356,4]
[365290198,1749582635677,-408.09044017,0.00021356,4]
[365290199,1749582635686,-380.0,0.00021356,4]
[365290200,1749582635695,-400.0,0.00021356,4]
[365290201,1749582635705,-460.0,0.00021356,2]
[365290202,1749582635715,-460.0,0.00021356,4]
[365290203,1749582635725,-574.68059444,0.00021356,4]
[365290204,1749582635734,-429.03418222,0.00021356,4]
[365290205,1749582635746,-400.0,0.00021356,4]
[365290206,1749582635755,-460.0,0.00021356,4]
[365290207,1749582635768,-440.0,0.00021356,4]
[365290208,1749582635778,-460.0,0.00021356,4]
[365290209,1749582635787,-234.36793446,0.00021356,4]
[365290210,1749582635797,-440.0,0.00021356,4]
[365290211,1749582635807,-440.0,0.00021356,4]
[365290212,1749582635816,-440.0,0.00021356,4]
[365290213,1749582635826,-440.0,0.00021356,4]
[365290214,1749582635836,-440.0,0.00021356,4]
[365290215,1749582635847,-430.0,0.00021356,4]
[365290216,1749582635856,-380.0,0.00021356,4]
[365290217,1749582635865,-440.0,0.00021356,4]
[365290218,1749582635875,-440.0,0.00021356,4]
[365290219,1749582635884,-401.28383449,0.00021356,4]
[365290220,1749582635893,-440.0,0.00021356,4]
[365290221,1749582635902,-500.0,0.00021357,4]
[365290222,1749582635912,-242.06017446,0.00021357,4]
[365290223,1749582635921,-440.0,0.00021357,4]
[365290224,1749582635931,-460.0,0.00021358,4]
[365290225,1749582635940,-547.98005441,0.00021358,4]
[365290226,1749582635949,-371.75727751,0.00021359,4]
[365290227,1749582635959,-500.0,0.00021373,2]
[365290228,1749582635968,-153.43569152,0.00021373,2]
[365290229,1749582635977,-500.0,0.00021373,2]
[365290230,1749582635988,-500.0,0.00021373,2]
[365290231,1749582635999,-503.10535846,0.00021373,2]
[365290232,1749582636008,-500.0,0.00021373,2]
[365290233,1749582636017,-208.8453268,0.00021373,2]
[365290234,1749582636026,-500.0,0.00021373,2]
[365290235,1749582636035,-500.0,0.00021373,2]
[365290236,1749582636045,-500.0,0.00021373,2]
[365290237,1749582636054,-500.0,0.00021373,2]
[365290238,1749582636063,-500.0,0.00021373,2]
[365290239,1749582636072,-382.97009213,0.0002153,2]
[365290240,1749582636082,-440.0,0.00021628,4]
[365290241,1749582636091,-460.0,0.00021628,4]
[365290242,1749582636101,-460.0,0.00021628,4]
[365290243,1749582636110,-1071.55,0.00021628,4]
[365290244,1749582636119,-694.83,0.00021628,4]
[365290245,1749582636129,-605.44,0.00021628,4]
[365290246,1749582636139,-460.0,0.00021628,4]
[365290247,1749582636149,-440.0,0.00021628,4]
[365290248,1749582636158,-460.0,0.00021628,4]
[365290249,1749582636167,-622.43,0.00021628,4]
[365290250,1749582636176,-766.84,0.00021628,4]
[365290251,1749582636185,-564.23,0.00021628,4]
[365290252,1749582636194,-460.0,0.00021628,4]
[365290253,1749582636203,-460.0,0.00021628,4]
[365290254,1749582636213,-460.0,0.00021628,4]
[365290255,1749582636222,-460.0,0.00021628,4]
[365290256,1749582636232,-460.0,0.00021628,4]
[365290257,1749582636241,-420.0,0.00021628,4]
[365290258,1749582636251,-440.0,0.00021628,4]
[365290259,1749582636261,-538.0937288,0.00021629,4]
[365290260,1749582636271,-460.0,0.00021629,4]
[365290261,1749582636280,-460.0,0.00021629,4]
[365290262,1749582636289,-465.04528927,0.00021629,4]
[365290263,1749582636299,-460.0,0.00021629,4]
[365290264,1749582636308,-460.0,0.00021629,4]
[365290265,1749582636317,-460.0,0.00021629,4]
[365290266,1749582636326,-460.0,0.00021629,4]
[365290267,1749582636336,-730.35,0.00021629,4]
[365290268,1749582636346,-460.0,0.00021629,4]
[365290269,1749582636355,-460.0,0.00021629,4]
[365290270,1749582636364,-362.62435619,0.00021629,4]
[365290271,1749582636373,-460.0,0.00021629,4]
[365290272,1749582636382,-460.0,0.00021629,4]
[365290273,1749582636391,-460.0,0.00021629,4]
[365290274,1749582636400,-440.0,0.00021629,4]
[365290275,1749582636409,-426.16,0.00021629,4]
[365290276,1749582636422,-460.0,0.00021629,4]
[365290277,1749582636432,-460.0,0.00021629,4]
[365290278,1749582636441,-460.0,0.00021629,4]
[365290279,1749582636451,-460.0,0.00021629,4]
[365290280,1749582636461,-460.0,0.00021629,4]
[365290281,1749582636470,-460.0,0.00021629,4]
[365290282,1749582636479,-440.0,0.00021629,4]
[365290283,1749582636490,-460.0,0.0002163,4]
[365290284,1749582636499,-460.0,0.0002163,4]
[365290285,1749582636509,-420.89424069,0.0002163,4]
[365290286,1749582636519,-935.39,0.0002163,4]
[365290287,1749582636528,-460.0,0.0002163,4]
[365290288,1749582636537,-460.0,0.0002163,4]
[365290289,1749582636547,-360.0,0.0002163,4]
[365290290,1749582636556,-1594.92,0.0002163,4]
[365290291,1749582636565,-956.23,0.0002163,4]
[365290292,1749582636575,-460.0,0.0002163,4]
[365290293,1749582636584,-460.0,0.0002163,4]
[365290294,1749582636593,-540.0,0.0002163,4]
[365290295,1749582636602,-500.0,0.0002163,4]
[365290296,1749582636611,-460.0,0.0002163,4]
[365290297,1749582636620,-460.0,0.0002163,4]
[365290298,1749582636630,-460.0,0.0002163,4]
[365290299,1749582636639,-360.0,0.0002163,4]
[365290300,1749582636650,-460.0,0.0002163,2]
[365290301,1749582636660,-460.0,0.0002163,4]
[365290302,1749582636672,-460.0,0.0002163,4]
[365290303,1749582636682,-390.0,0.00021632,4]
[365290304,1749582636691,-477.41884824,0.000219,6]
[365290305,1749582636700,-340.0,0.00021902,4]
[365290306,1749582636709,-390.84,0.00021902,4]
[365290307,1749582636719,-1071.55,0.00021902,4]
[365290308,1749582636728,-694.83,0.00021902,4]
[365290309,1749582636737,-605.44,0.00021902,4]
[365290310,1749582636746,-460.0,0.00021902,4]
[365290311,1749582636755,-460.0,0.00021902,4]
[365290312,1749582636767,-622.43,0.00021902,4]
[365290313,1749582636776,-766.84,0.00021902,4]
[365290314,1749582636786,-564.23,0.00021902,4]
[365290315,1749582636795,-460.0,0.00021902,4]
[365290316,1749582636805,-440.0,0.00021902,4]
[365290317,1749582636814,-460.0,0.00021902,4]
[365290318,1749582636824,-460.0,0.00021902,4]
[365290319,1749582636834,-460.0,0.00021903,4]
[365290320,1749582636843,-460.0,0.00021903,4]
[365290321,1749582636853,-389.85,0.00021903,4]